Cogmind - Beta 9.3 --- EXPLORER MODE // 2019.12.31 @ 13:51:19 // Winter2019/RPGLIKE Player: K.Ioz Result: Destroyed by G-47 Trooper with Particle Gun Performance ------------- Evolutions (2) 1000 Regions Visited (5) 1000 Robots Destroyed (21) 105 Value Destroyed (504) 504 Prototype IDs (3) 60 Alien Tech Used (0) 0 Bonus (252) 252 TOTAL SCORE: 2921 Bonus ------- Follower Combat Kills 21 Aligned with FarCom 300 Friendly Fire -69 Cogmind --------- Core Integrity 0/600 Matter 300/300 Energy 125/125 System Corruption 0% Temperature Cool (9) Movement Flying (37) Location -8/Materials Parts ------- > --- POWER (1) -------- Light Ion Engine > --- PROPULSION (2) --- Flight Unit Flight Unit > --- UTILITY (3) ------ Visual Processing Unit Terrain Scanner ECM Suite > --- WEAPON (2) ------- Assault Rifle Light Assault Rifle > --- INVENTORY (2) ---- Nuclear Core High-capacity Matter Pod (200) Peak State ------------ > --- POWER ------------ Light Ion Engine > --- PROPULSION ------- Flight Unit Flight Unit > --- UTILITY ---------- Visual Processing Unit Terrain Scanner ECM Suite > --- WEAPON ----------- Assault Rifle Light Assault Rifle > --- INVENTORY -------- (None) [Rating: 9] Favorites ----------- Power Light Ion Engine Engine Light Ion Engine Propulsion Flight Unit Treads Light Treads Flight Unit Flight Unit Utility ECM Suite Device ECM Suite Processor Visual Processing Unit Weapon Assault Rifle Ballistic Gun Assault Rifle Build | -11 -10 -10 -10 -9 -8 ------- Run | Scr Mat Min Exi Min Mat Slots Evolved 4 | 1 2 1 . . . Power . | . . . . . . Propulsion 1 | . 1 . . . . Utility 2 | . 1 1 . . . Weapon 1 | 1 . . . . . Parts Attached 12 | 5 5 2 . . . Power 1 | 1 . . . . . Engine 1 | 1 . . . . . Core . | . . . . . . Reactor . | . . . . . . Propulsion 3 | 1 2 . . . . Treads 1 | 1 . . . . . Leg . | . . . . . . Wheel . | . . . . . . Hover . | . . . . . . Flight 2 | . 2 . . . . Utility 6 | 1 3 2 . . . Device 4 | . 2 2 . . . Storage . | . . . . . . Processor 2 | 1 1 . . . . Hackware . | . . . . . . Protection . | . . . . . . Artifact . | . . . . . . Weapon 2 | 2 . . . . . Energy Gun . | . . . . . . Energy Cannon . | . . . . . . Ballistic Gun 2 | 2 . . . . . Ballistic Cannon . | . . . . . . Launcher . | . . . . . . Special Weapon . | . . . . . . Impact Weapon . | . . . . . . Slashing Weapon . | . . . . . . Piercing Weapon . | . . . . . . Special Melee Weapon . | . . . . . . Unidentified Prototypes . | . . . . . . Parts Lost . | . . . . . . Power . | . . . . . . Propulsion . | . . . . . . Utility . | . . . . . . Weapon . | . . . . . . Highest Loss Streak . | . . . . . . Average Slot Usage (%) 100 | . 100 100 100 100 100 Engine 13 | . 14 12 12 12 12 Treads 1 | . 3 . . . . Flight 23 | . 22 25 25 25 25 Device 18 | . 14 25 25 25 25 Processor 13 | . 14 12 12 12 12 Ballistic Gun 27 | . 29 25 25 25 25 Naked Turns . | . . . . . . Heaviest Build 8 | 6 7 8 8 8 8 Greatest Support 20 | 20 20 8 8 8 8 Greatest Overweight (x) 1 | . 1 . . . . Average Overweight (x) . | . . . . . . Largest Inventory Capacity 2 | . 1 1 2 2 2 Average Capacity . | . . 1 1 2 2 Most Carried 2 | . 1 1 2 2 2 Average Carried . | . . . 1 1 2 Final Capacity 2 | . 1 1 2 2 2 Final Carried 2 | . 1 1 2 2 2 Class Distribution -------------------- 50% | Hacker-Mutant 41% | Hacker-Scout 8% | Hacker-Skirmisher Dominant Class ---------------- Hacker-Mutant | -10/Materials Hacker-Scout | -10/Mines Hacker-Scout | -10/Exiles Hacker-Scout | -9/Mines Hacker-Scout | -8/Materials Resources | -11 -10 -10 -10 -9 -8 ----------- Run | Scr Mat Min Exi Min Mat Matter Collected 858 | 250 360 63 . 185 . Remotely . | . . . . . . Salvage Created 660 | . 632 28 . . . Parts 41 | . 40 1 . . . Haulers Intercepted . | . . . . . . Recyclers Shooed . | . . . . . . Parts Field Recycled . | . . . . . . Retrieved Matter . | . . . . . . Parts Self-Destructed . | . . . . . . Prevented . | . . . . . . Kills | -11 -10 -10 -10 -9 -8 ------- Run | Scr Mat Min Exi Min Mat Combat Hostiles Destroyed 15 | . 14 1 . . . Guns 15 | . 14 1 . . . Classes Destroyed 6 | . 6 . . . . Worker 3 | . 3 . . . . Tunneler 1 | . 1 . . . . Recycler 1 | . 1 . . . . Mechanic 1 | . 1 . . . . Swarmer 2 | . 1 1 . . . Grunt 13 | . 13 . . . . Best Kill Streak 3 | . 3 1 . . . Combat Bots Only 2 | . 2 1 . . . Max Kills in Single Turn 2 | . 2 1 . . . Gunslinging . | . . . . . . Exploded . | . . . . . . Melee . | . . . . . . Uniques/NPCs Destroyed . | . . . . . . Combat | -11 -10 -10 -10 -9 -8 -------- Run | Scr Mat Min Exi Min Mat Damage Taken 805 | . 46 18 . 154 587 Core 663 | . 38 18 . 125 482 Absorbed by Shields . | . . . . . . Redirected to Core 437 | . 21 . . 85 331 Core Remaining (%) 89 | 100 . . . 79 . Volleys Fired 89 | . 82 3 . 4 . Largest 2 | . 2 2 . 2 . Hottest 40 | . 40 40 . 40 . Shots Fired 172 | . 158 6 . 8 . Gun 172 | . 158 6 . 8 . Cannon . | . . . . . . Launcher . | . . . . . . Special . | . . . . . . Kinetic 172 | . 158 6 . 8 . Thermal . | . . . . . . Explosive . | . . . . . . Electromagnetic . | . . . . . . Robot Hit Streak 20 | . 20 4 . 11 . Robot Miss Streak 3 | . 3 1 . 1 . Penetration Max . | . . . . . . Secondary Targets 2 | . 2 . . . . Max Gunslinging Chain 1 | . 1 . . . . Shots Hit Robots 117 | . 106 4 . 7 . Core Hits 43 | . 39 3 . 1 . Critical Hits 2 | . 2 . . . . Critical Kills . | . . . . . . Critical Parts Destroyed 2 | . 2 . . . . Melee Attacks . | . . . . . . Impact . | . . . . . . Slashing . | . . . . . . Piercing . | . . . . . . Sneak Attacks . | . . . . . . Combat Hostiles . | . . . . . . Follow-up Attacks . | . . . . . . Damage Inflicted 1031 | . 927 63 . 41 . Guns 1031 | . 927 63 . 41 . Cannons . | . . . . . . Explosions . | . . . . . . Melee . | . . . . . . Ramming . | . . . . . . Kinetic 1031 | . 927 63 . 41 . Thermal . | . . . . . . Explosive . | . . . . . . Electromagnetic . | . . . . . . Impact . | . . . . . . Slashing . | . . . . . . Piercing . | . . . . . . Highest Corruption . | . . . . . . Average Corruption . | . . . . . . Corruption Purged . | . . . . . . Overload Shots . | . . . . . . Overflow Damage . | . . . . . . Projectiles . | . . . . . . Explosions . | . . . . . . Melee . | . . . . . . Knockbacks . | . . . . . . Impact . | . . . . . . Kinetic . | . . . . . . Secondary . | . . . . . . Self-Inflicted Damage . | . . . . . . Shots . | . . . . . . Rammed . | . . . . . . Targets Rammed . | . . . . . . Kicked . | . . . . . . Crushed . | . . . . . . Highest Temperature 27 | . 12 8 . 4 27 Average Temperature 4 | . 4 4 . 3 12 Received Heat Transfer 339 | . 24 . . . 315 Siege Activations . | . . . . . . Robots Corrupted . | . . . . . . Combat Hostiles . | . . . . . . Parts Fried . | . . . . . . Impact Corruptions . | . . . . . . Robots Melted . | . . . . . . Combat Hostiles . | . . . . . . Parts Melted . | . . . . . . Heat Transferred . | . . . . . . Parts Sabotaged . | . . . . . . Parts Stolen . | . . . . . . Parts Stripped . | . . . . . . Power Chain Reactions . | . . . . . . Missiles Intercepted . | . . . . . . Alert | -11 -10 -10 -10 -9 -8 ------- Run | Scr Mat Min Exi Min Mat Peak Influence 215 | . 215 58 . 116 76 Average Influence 33 | . 46 20 . 23 57 Maximum Alert Level 1 | . 1 . . . . Low Security (%) 97 | 100 96 100 . 100 100 Level 1 2 | . 3 . . . . Level 2 . | . . . . . . Level 3 . | . . . . . . Level 4 . | . . . . . . Level 5 . | . . . . . . High Security . | . . . . . . Max Security . | . . . . . . Squads Dispatched 4 | . 4 . . . . Investigation 4 | . 4 . . . . Extermination . | . . . . . . Reinforcement . | . . . . . . Assault . | . . . . . . Garrison . | . . . . . . Intercept . | . . . . . . Construction Impeded . | . . . . . . Haulers Reinforced . | . . . . . . Stealth | -11 -10 -10 -10 -9 -8 --------- Run | Scr Mat Min Exi Min Mat Distress Signals 2 | . 2 . . . . Communications Jammed . | . . . . . . Distress Signals . | . . . . . . Times Spotted 42 | . 25 2 . 3 12 Peak Tracking Total 12 | . 3 2 . 2 12 Tactical Retreats 9 | . 8 . . 1 . Traps | -11 -10 -10 -10 -9 -8 ------- Run | Scr Mat Min Exi Min Mat Traps Triggered . | . . . . . . Indirectly . | . . . . . . Trap Hack Attempts . | . . . . . . Triggered . | . . . . . . Disarmed . | . . . . . . Reprogrammed 3 | . 3 . . . . Reused . | . . . . . . Traps Extracted . | . . . . . . Installed . | . . . . . . Triggered 1 | . . . . 1 . Machines | -11 -10 -10 -10 -9 -8 ---------- Run | Scr Mat Min Exi Min Mat Machines Disabled . | . . . . . . Max in Single Turn . | . . . . . . Machines Sabotaged . | . . . . . . Garrisons Compromised . | . . . . . . Overloaded Fab Kills . | . . . . . . Fab Network Shutdowns . | . . . . . . Hacking | -11 -10 -10 -10 -9 -8 --------- Run | Scr Mat Min Exi Min Mat Machines Accessed 11 | . 10 . 1 . . Terminals 8 | . 8 . . . . Fabricators . | . . . . . . Repair Stations . | . . . . . . Recycling Units 2 | . 2 . . . . Scanalyzers . | . . . . . . Garrison Access . | . . . . . . Total Hacks 42 | . 40 . 2 . . Successful 32 | . 30 . 2 . . Failed 10 | . 10 . . . . Catastrophic . | . . . . . . Database Lockouts . | . . . . . . Manual 18 | . 11 . 7 . . Terminals 36 | . 36 . . . . Fabricators . | . . . . . . Repair Stations . | . . . . . . Recycling Units 4 | . 4 . . . . Scanalyzers . | . . . . . . Garrison Access . | . . . . . . Terminal Hacks 28 | . 26 . 2 . . Record 2 | . . . 2 . . Prototype ID Bank 2 | . 2 . . . . Branch Access Points 1 | . 1 . . . . Fabricator Index 1 | . 1 . . . . Alert Level 1 | . 1 . . . . Locate Traps 7 | . 7 . . . . Reprogram Traps 1 | . 1 . . . . Dispatch Records 1 | . 1 . . . . Security Status 2 | . 2 . . . . Patrol Status 1 | . 1 . . . . Investigation Status 1 | . 1 . . . . Assault Status 2 | . 2 . . . . Recall Investigation 1 | . 1 . . . . Recall Assault 1 | . 1 . . . . Hauler Manifests 2 | . 2 . . . . Zone Layout 2 | . 2 . . . . Fabricator Hacks . | . . . . . . Repair Station Hacks . | . . . . . . Recycling Unit Hacks 4 | . 4 . . . . Process 2 | . 2 . . . . Report Inventory 1 | . 1 . . . . Retrieve Components 1 | . 1 . . . . Scanalyzer . | . . . . . . Garrison Access Hacks . | . . . . . . Unauthorized Hacks . | . . . . . . Terminals . | . . . . . . Fabricators . | . . . . . . Repair Stations . | . . . . . . Recycling Units . | . . . . . . Scanalyzers . | . . . . . . Garrison Access . | . . . . . . Data Cores Recovered . | . . . . . . Used . | . . . . . . Hacking Detections 9 | . 9 . . . . Full Trace Events 6 | . 6 . . . . Feedback Events . | . . . . . . Feedback Blocked . | . . . . . . Robot Schematics Acquired . | . . . . . . Robots Built . | . . . . . . Matter . | . . . . . . Time . | . . . . . . Total Robot Build Rating . | . . . . . . Part Schematics Acquired . | . . . . . . Parts Built . | . . . . . . Matter . | . . . . . . Time . | . . . . . . Total Part Build Rating . | . . . . . . Parts Repaired . | . . . . . . Time . | . . . . . . Parts Recycled . | . . . . . . Recycled Matter 147 | . 147 . . . . Retrieved Matter . | . . . . . . Retrieved Components 3 | . 3 . . . . Parts Scanalyzed . | . . . . . . Part Schematics Acquired . | . . . . . . Parts Damaged . | . . . . . . Bothacking | -11 -10 -10 -10 -9 -8 ------------ Run | Scr Mat Min Exi Min Mat Used RIF Installer . | . . . . . . Robots Hacked . | . . . . . . Non-combat . | . . . . . . Combat . | . . . . . . Robot Hacks Applied . | . . . . . . Relay Couplers Released . | . . . . . . Robots Rewired . | . . . . . . Allies Hacked . | . . . . . . Hacks Repelled . | . . . . . . Allies | -11 -10 -10 -10 -9 -8 -------- Run | Scr Mat Min Exi Min Mat Total Allies 4 | . . 4 . . . Largest Group 4 | . . 4 3 3 2 Highest-Rated Group 71 | . . 71 40 40 32 Highest-Rated Ally 31 | . . 31 16 16 16 Total Orders . | . . . . . . Ally Attacks 32 | . . 5 . 26 1 Total Damage 288 | . . 20 . 268 . Kills 6 | . . 1 . 5 . Allies Corrupted . | . . . . . . Allies Melted . | . . . . . . Intel | -11 -10 -10 -10 -9 -8 ------- Run | Scr Mat Min Exi Min Mat Robot Analysis Total . | . . . . . . Derelict Logs Recovered . | . . . . . . Drone Launches . | . . . . . . Drone Recoveries . | . . . . . . Exploration | -11 -10 -10 -10 -9 -8 ------------- Run | Scr Mat Min Exi Min Mat Turns Passed 3449 | 459 1731 347 507 353 52 Spaces Moved 4742 | 303 2092 621 1026 607 93 Core 96 | 96 . . . . . Treads 422 | 207 215 . . . . Legs . | . . . . . . Wheels . | . . . . . . Hover . | . . . . . . Flight 4224 | . 1877 621 1026 607 93 Fastest Speed 37 | 50 37 37 37 37 37 Average Speed 48 | 125 49 37 37 37 37 Slowest Speed 160 | 160 160 37 37 37 37 Overloaded Moves . | . . . . . . Propulsion Burnouts . | . . . . . . Robots Hopped 44 | . 22 9 . 11 2 Cave-ins Triggered . | . . . . . . Exploration Rate (%) 64 | 7 99 87 96 84 15 Regions Visited 5 Branch Regions 3 Pre-discovered Areas . | . . . . . . Known Exits Taken 5 | 1 1 1 1 1 . Unknown Exits Taken . | . . . . . . Scrap Searched 1 | . . 1 . . . Spaces Dug . | . . . . . . Terrain Destroyed . | . . . . . . Melee . | . . . . . . Projectile . | . . . . . . AOE . | . . . . . . Actions | -11 -10 -10 -10 -9 -8 --------- Run | Scr Mat Min Exi Min Mat Total 5701 | 380 2618 723 1154 717 109 Wait 885 | 73 454 102 122 116 18 Move 4650 | 302 2047 602 1025 585 89 Hop 43 | . 22 9 . 10 2 Pick Up 8 | . 1 2 4 1 . Fast Attach 10 | 5 4 1 . . . Attach 1 | . . 1 . . . Detach 1 | . 1 . . . . Swap 1 | . 1 . . . . Drop 8 | . 2 2 3 1 . Fire 89 | . 82 3 . 4 . Melee . | . . . . . . Ram . | . . . . . . Kick . | . . . . . . Crush . | . . . . . . Escape Stasis . | . . . . . . Rewire . | . . . . . . Trap . | . . . . . . Miscellaneous 5 | . 4 1 . . . Route ------- -11/Scrapyard -10/Materials (discovered 5 exits: *Mat x3 / *Min x2) -10/Mines (discovered 3 exits: *Mat x2 / *Exi) -10/Exiles (discovered 2 exits: *Min x2) -9/Mines (discovered 2 exits: *Mat x2) -8/Materials History --------- Turn | Location | Event 9 | -11/Scrapyard | Identified exit to Materials 9 | -11/Scrapyard | Discovered exit to Materials (range 16) 369 | -11/Scrapyard | Upgraded with Weapon slot (x1) 460 | -11/Scrapyard | Entered Materials 461 | -10/Materials | Build established: Hacker-Mutant 505 | -10/Materials | Upgraded with Utility slot (x1) 820 | -10/Materials | Identified exit to Materials 820 | -10/Materials | Discovered exit to Materials (range 14) 826 | -10/Materials | Upgraded with Propulsion slot (x1) 844 | -10/Materials | Identified exit to Mines 970 | -10/Materials | Discovered exit to Materials (range 17) 1180 | -10/Materials | Discovered exit to Materials (range 6) 1703 | -10/Materials | Reached level 2 2191 | -10/Materials | Entered Mines 2196 | -10/Mines | Discovered exit to Materials (range 13) 2197 | -10/Mines | Upgraded with Utility slot (x1) 2233 | -10/Mines | Received a Mining Laser from a helpful Derelict 2342 | -10/Mines | Found a damaged Exp. Sensor Array with a note attached 2382 | -10/Mines | Deemed a non-threat by the Exiles lab entrance 2382 | -10/Mines | Identified exit to Exiles 2382 | -10/Mines | Discovered exit to Exiles (range 5) 2417 | -10/Mines | Assisted by bots powering up and referring to "LRC-V3" 2457 | -10/Mines | Discovered exit to Materials (range 11) 2490 | -10/Mines | Build established: Hacker-Scout 2538 | -10/Mines | Entered Exiles 2538 | -10/Exiles | Accompanied by 4 allies 2544 | -10/Exiles | Identified exit to Mines 2544 | -10/Exiles | Discovered exit to Mines (range 17) 2548 | -10/Exiles | Met 8R-AWN 2555 | -10/Exiles | Met EX-HEX 2566 | -10/Exiles | Met EX-BIN 2600 | -10/Exiles | Reached level 3 2600 | -10/Exiles | Aligned with FarCom system 2600 | -10/Exiles | Given EX-Vault access code 2718 | -10/Exiles | Opened EX-Vault 2724 | -10/Exiles | Warned to stay clear of 0b10 Research branches 2757 | -10/Exiles | Met EX-DEC 2779 | -10/Exiles | Discovered exit to Mines (range 12) 2807 | -10/Exiles | Visited The Gauntlet 3045 | -10/Exiles | Entered Mines 3045 | -9/Mines | Accompanied by 3 allies 3070 | -9/Mines | Identified exit to Materials 3070 | -9/Mines | Discovered exit to Materials (range 10) 3079 | -9/Mines | Received a Rocket Launcher from a helpful Derelict 3113 | -9/Mines | Met a Derelict bent on vengeance 3113 | -9/Mines | Discovered exit to Materials (range 6) 3398 | -9/Mines | Entered Materials 3398 | -8/Materials | Accompanied by 2 allies 3400 | -8/Materials | Reached level 4 3400 | -8/Materials | Reached level 5 3400 | -8/Materials | Reached level 6 3438 | -8/Materials | Core integrity fell below 50% 3446 | -8/Materials | Core integrity fell below 20% 3450 | -8/Materials | Destroyed by G-47 Trooper with Particle Gun Last Messages --------------- 03396_ R-06 Scavenger collects Flight Unit. LOCATION=MATERIALS GOAL=ESCAPE 03398_ Receiving FarCom transmissions... 03400_ Reached level 4. 03400_ Reached level 5. 03400_ Reached level 6. 03417_ K-01 Serf collects debris. 03420_ C-30 ARC bursts open, deploying its payload. 03420_ G-50 Soldier unfolds itself. 03420_ K-01 Serf collects debris. 03427_ Slug penetrates Wall. 03429_ K-01 Serf collects debris. 03430_ Slug penetrates Wall. 03431_ K-01 Serf collects debris. 03436_ Penetrated by Slug. 03439_ K-01 Serf collects debris. 03443_ G-47 Trooper destroyed. 03443_ K-01 Serf collects debris. 03450_ Slug penetrates Wall. Map ----- +----------------------------------------------------+ | ?????????????????????????????????????????????????? | | ?????????????????????????????????????????????????? | | ?????????????????????????????????????????????????? | | ?????????????????????#???#???????????????????????? | | ?????????????????????????##??????????????????????? | | ?????????????????? ?#???#????????????????????????? | | ?????????????????? #######o ""??????????????????? | | ??????????????? ?? ?# #???""" ????????????????? | | ????????????????????# ? ## ? ??????????????? | | ????????????????#???# ##+????##???????????????? | | ???????????????#?#?## #??###### ?#????????????? | | ????????????##?#?##?# ! #? ###### ?#????????????? | | ???# ???????#######?# =## ###### ?? ???????????? | | ??????#?#?#??###?#### ## ####???## ???????????? | | ?? ????##?## ? # ## ##?### ?##???????????? | | ???#?####### """"" # ## ###### #?#???????????? | | ??# ? ? ? """"" ###;### ###### ####??????????? | | ? ? "T? # """"" # #### ###???????????? | | ?? # ? # """"" + ####+####??????????? | | ? ????##### """"" # a s s # ???????????? | | ?####?##? """"" ### !k # ??????????? | | #####??## """"" ###*gs # #?????????? | | ##?###??# ### = # #?????????? | | "%#################### h r # #?????????? | | ? g a rgg + * #?????????? | | g @ #? #?????????? | | # ??????????? | | g # ???????????? | | ######## gr ######+##??????????? | | ####?### ######## u ######? ??????????? | | ######## ######## ????????? | | ?####### ######## Y######## ????????? | | ##??#### ##?##### ### ???????????? | | #####?## ######## ### ????????????? | | ?####### #?###### ##??????????????? | | #?###?## ######## u] ##??????????????? | | ######## ################# #???????????????? | | ? # # = #########+###???????????????? | | ? # # !##### ??????????????????? | | ? ? + + ###?#???? ?????????????????? | | "" """ # # """ """ ##???????? ?????????????????? | | ???"?" # # """ """ ##????????""????????????????? | | "" """ # # """ """ ###???????""????????????????? | | "? """ # # #?#?????????????????????????? | | ? # # [##?#????????????????????????? | | ####?### ###########???????????????????????????? | | ??#?#??# #####?##??###?????????????????????????? | | ?##??### ########?####?????????????????????????? | | #?# ?### #?#?####?##???????????????????????????? | | ######## #??######???#?????????????????????????? | +----------------------------------------------------+ Best States ------------- Heat Dissipation 25 Energy Generation 10 Energy Capacity 125 Matter Stores 300 Matter Capacity 300 Sight Range 22 Robot Scan Range 24 Terrain Scan Range 14 Terrain Scan Density 1210 ECM Strength 1 Resistance: KI 35 Resistance: TH 35 Resistance: EX 35 Resistance: EM 35 Resistance: I 35 Resistance: S 35 Resistance: P 35 Evasion (%) 62 Recoil Reduction 1 Offensive Hacking 20 Item Schematics ----------------- None Robot Schematics ------------------ None Fabricated ------------ Nothing Alien Tech Used ----------------- None Achievements -------------- None Challenges ------------ None RPGLIKE | -11 -10 -10 -10 -9 -8 --------- Run | Scr Mat Min Exi Min Mat Levels Raised 5 | . 1 . 1 . 3 XP Earned 14620 | 6000 1915 768 350 1308 4279 XP Spent 8820 | 500 5100 1570 500 1150 . Upgrades 34 | 1 19 8 1 5 . Propulsion Slot 1 | . 1 . . . . Utility Slot 2 | . 1 1 . . . Weapon Slot 1 | 1 . . . . . Inventory Capacity 2 | . 1 . 1 . . Sight Range 4 | . 4 . . . . Sensor Range 12 | . 12 . . . . Terrain Scan Density 12 | . . 7 . 5 . Protomatter Created 174 | . 174 . . . . Integrity Restored 70 | . 52 18 . . . Core 56 | . 38 18 . . . Parts 14 | . 14 . . . . Protomatter Decayed 288 | . 248 . . 40 . Game ------ Seed MeleeTrackerKit Manual? 0 Play Time 01:05:42 Cumulative 61.6 hours Start 2019.12.30 @ 16:41:14 End 2019.12.31 @ 13:51:19 Sessions 6 Manual Loads 0 Difficulty Explorer Special Mode Winter2019/RPGLIKE Game No. 54 Rogue 49 Adventurer 0 Explorer 5 Win Type - Total 0 Types 0/0/0/0/0/0/0 Lore% 34 Gallery% 38 Achievement% 34 Wizard Run 0 Options --------- ASCII 1 Keyboard 1 Movement Vi Keybinds 0 Fullscreen 1 Font 18/SmallcapsGlow Map View 76x50 Tactical HUD 1 Map Filters NONE Filters LOW_CONTRAST(47,30,31)|SHIFT_HUE(270) Steam 1 RUN: 0575400b-41b8-45dc-93ce-b30756623249